Cogmind - Beta 13 @@@ ROGUE MODE // 2024.07.22 @ 19:55:58 Player: opdo Result: Destroyed by Autobeam Turret with Autobeam Performance ------------- Evolutions (0) 0 Regions Visited (2) 400 Robots Destroyed (9) 45 Value Destroyed (214) 214 Prototype IDs (0) 0 Alien Tech Used (0) 0 Bonus (0) 0 TOTAL SCORE: 659 Bonus ------- None Cogmind --------- Core Integrity 0/250 Matter 159/300 Energy 123/125 System Corruption 0% Temperature Cool (12) Movement Rolling (90) Location -10/Subcaves Parts ------- > --- POWER (1) -------- Light Ion Engine > --- PROPULSION (2) --- Wheel Compact Wheel > --- UTILITY (2) ------ Small Storage Unit Targeting Computer > --- WEAPON (2) ------- Light Assault Rifle Makeshift Sword > --- INVENTORY (8) ---- Aluminum Leg Aluminum Leg Seismic Detector Scrap Shield Hacking Suite Makeshift System Restoration Module Small Laser Peak State ------------ > --- POWER ------------ Light Ion Engine > --- PROPULSION ------- Aluminum Leg Aluminum Leg > --- UTILITY ---------- Small Storage Unit Seismic Detector > --- WEAPON ----------- Light Assault Rifle Makeshift Sword > --- INVENTORY -------- Light Treads Wheel Compact Wheel Targeting Computer Hacking Suite Makeshift System Restoration Module Small Laser [Rating: 11] Favorites ----------- Power Ion Engine Engine Ion Engine Propulsion Aluminum Leg Leg Aluminum Leg Wheel Wheel Utility Small Storage Unit Device Seismic Detector Storage Small Storage Unit Processor Targeting Computer Weapon Light Assault Rifle Ballistic Gun Light Assault Rifle Launcher Grenade Launcher Slashing Weapon Makeshift Sword Build | -11 -10 -10 ------- Run | Yrd Mat Sub Slots Evolved . | . . . Power . | . . . Propulsion . | . . . Utility . | . . . Weapon . | . . . Parts Attached 14 | 7 . 7 Power 2 | 1 . 1 Engine 2 | 1 . 1 Core . | . . . Reactor . | . . . Propulsion 4 | 2 . 2 Treads . | . . . Leg 2 | 2 . . Wheel 2 | . . 2 Hover . | . . . Flight . | . . . Utility 3 | 2 . 1 Device 1 | 1 . . Storage 1 | 1 . . Processor 1 | . . 1 Hackware . | . . . Protection . | . . . Artifact . | . . . Weapon 5 | 2 . 3 Energy Gun . | . . . Energy Cannon . | . . . Ballistic Gun 3 | 2 . 1 Ballistic Cannon . | . . . Launcher 1 | . . 1 Special Weapon . | . . . Impact Weapon . | . . . Slashing Weapon 1 | . . 1 Piercing Weapon . | . . . Special Melee Weapon . | . . . Unidentified Prototypes . | . . . Parts Lost 3 | . . 3 Power 1 | . . 1 Propulsion . | . . . Utility . | . . . Weapon 2 | . . 2 Highest Loss Streak 3 | . . 3 To Critical Strikes . | . . . Average Slot Usage (%) 98 | . 100 97 Engine 13 | . 14 12 Leg 22 | . 28 18 Wheel 5 | . . 9 Device 11 | . 14 9 Storage 14 | . 14 14 Processor 2 | . . 4 Ballistic Gun 20 | . 28 15 Slashing Weapon 7 | . . 11 Naked Turns . | . . . Heaviest Build 16 | 14 14 16 Greatest Support 26 | 20 20 26 Greatest Overweight (x) 2 | 2 . . Average Overweight (x) . | . . . Largest Inventory Capacity 8 | 8 8 8 Average Capacity 7 | 7 8 8 Most Carried 8 | 6 8 8 Average Carried 7 | 3 7 7 Final Capacity 8 | 8 8 8 Final Carried 8 | 6 8 8 Class Distribution -------------------- 100% | Mutant Dominant Class ---------------- Mutant | -10/Materials Mutant | -10/Subcaves Resources | -11 -10 -10 ----------- Run | Yrd Mat Sub Matter Collected 322 | 60 56 206 Remotely . | . . . Salvage Created 210 | 16 75 119 Parts 19 | 2 10 7 Haulers Intercepted . | . . . Recyclers Shooed . | . . . Parts Field Recycled . | . . . Retrieved Matter . | . . . Parts Self-Destructed 10 | . . 10 Prevented . | . . . Kills | -11 -10 -10 ------- Run | Yrd Mat Sub Combat Hostiles Destroyed 6 | . 1 5 Melee 5 | . . 5 Guns 1 | . 1 . Classes Destroyed 6 | 1 3 2 Tunneler 1 | 1 . . Operator 1 | . 1 . Watcher 1 | . 1 . Swarmer 2 | . . 2 Grunt 3 | . 1 2 Subdweller 1 | . . 1 Best Kill Streak 2 | 1 1 2 Combat Bots Only 2 | . 1 2 Max Kills in Single Turn 1 | 1 1 1 Gunslinging . | . . . Exploded . | . . . Melee 1 | . . 1 Uniques/NPCs Destroyed . | . . . Combat | -11 -10 -10 -------- Run | Yrd Mat Sub Hostile Shots Fired 62 | . 3 59 Missed 22 | . 1 21 Damage Taken 717 | . 21 696 Core 254 | . . 254 Absorbed by Shields . | . . . Core Remaining (%) 100 | 100 . . Volleys Fired 34 | 3 13 18 Largest 2 | 2 2 2 Hottest 50 | 40 40 50 Shots Fired 61 | 6 26 29 Gun 58 | 6 26 26 Cannon . | . . . Launcher 3 | . . 3 Special . | . . . Kinetic 58 | 6 26 26 Thermal . | . . . Explosive 3 | . . 3 Electromagnetic . | . . . Robot Hit Streak 10 | 3 5 10 Robot Miss Streak 4 | 1 4 2 Penetration Max . | . . . Secondary Targets . | . . . Shots Hit Robots 45 | 4 12 29 Core Hits 14 | 1 7 6 Critical Kills . | . . . Critical Parts Destroyed . | . . . Critical Strikes . | . . . Melee Attacks 23 | . . 23 Impact . | . . . Slashing 23 | . . 23 Piercing . | . . . Sneak Attacks . | . . . Combat Hostiles . | . . . Follow-up Attacks . | . . . Damage Inflicted 809 | 53 121 635 Guns 303 | 50 120 133 Cannons . | . . . Explosions 248 | . . 248 Melee 254 | . . 254 Ramming 4 | 3 1 . Kinetic 303 | 50 120 133 Thermal . | . . . Explosive 248 | . . 248 Electromagnetic . | . . . Impact . | . . . Slashing 254 | . . 254 Piercing . | . . . Highest Corruption . | . . . Average Corruption . | . . . Corruption Purged . | . . . Corruption Blocked . | . . . Overload Shots . | . . . Overflow Damage 15 | . . 15 Projectiles . | . . . Explosions . | . . . Melee 15 | . . 15 Knockbacks . | . . . Impact . | . . . Kinetic . | . . . Secondary . | . . . Self-Inflicted Damage . | . . . Shots . | . . . Rammed . | . . . Targets Rammed 2 | 1 1 . Kicked 2 | 1 1 . Crushed . | . . . Highest Temperature 12 | . 12 . Average Temperature 8 | . 8 . Received Heat Transfer 90 | . 12 78 Siege Activations . | . . . Robots Corrupted . | . . . Combat Hostiles . | . . . Parts Fried . | . . . Impact Corruptions . | . . . Robots Melted . | . . . Combat Hostiles . | . . . Parts Melted . | . . . Heat Transferred . | . . . Parts Sabotaged . | . . . Parts Stolen . | . . . Parts Stripped . | . . . Power Chain Reactions . | . . . Alert | -11 -10 -10 ------- Run | Yrd Mat Sub Peak Influence 106 | 5 106 . Initial 3 | . 3 . Average 59 | . 67 . Maximum Alert Level . | . . . Low Security (%) 100 | 100 100 . Level 1 . | . . . Level 2 . | . . . Level 3 . | . . . Level 4 . | . . . Level 5 . | . . . High Security . | . . . Max Security . | . . . Squads Dispatched 1 | . 1 . Investigation . | . . . Extermination . | . . . Reinforcement 1 | . 1 . Assault . | . . . Garrison . | . . . Intercept . | . . . Searches Triggered . | . . . Construction Impeded . | . . . Haulers Reinforced . | . . . Active Scanning Responses . | . . . Cargo Convoy Interrupts . | . . . Stealth | -11 -10 -10 --------- Run | Yrd Mat Sub Distress Signals . | . . . Communications Jammed . | . . . Distress Signals . | . . . Times Spotted 16 | . 6 10 Peak Tracking Total 3 | . 2 3 Tactical Retreats 3 | . . 3 Traps | -11 -10 -10 ------- Run | Yrd Mat Sub Traps Triggered . | . . . Indirectly . | . . . Trap Hack Attempts . | . . . Triggered . | . . . Disarmed . | . . . Reprogrammed . | . . . Reused . | . . . Traps Extracted . | . . . Installed . | . . . Triggered 1 | . . 1 Machines | -11 -10 -10 ---------- Run | Yrd Mat Sub Machines Disabled . | . . . Max in Single Turn . | . . . Machines Repaired . | . . . Machines Dismantled . | . . . Machines Sabotaged . | . . . Overloaded Fab Kills . | . . . Hacking | -11 -10 -10 --------- Run | Yrd Mat Sub Machines Accessed 1 | . 1 . Terminals 1 | . 1 . Fabricators . | . . . Repair Stations . | . . . Recycling Units . | . . . Scanalyzers . | . . . Garrison Access . | . . . Total Hacks 2 | . 2 . Successful . | . . . Failed 2 | . 2 . Catastrophic . | . . . Database Lockouts . | . . . Manual 2 | . 2 . Terminals 2 | . 2 . Fabricators . | . . . Repair Stations . | . . . Recycling Units . | . . . Scanalyzers . | . . . Garrison Access . | . . . Terminal Hacks . | . . . Fabricator Hacks . | . . . Repair Station Hacks . | . . . Recycling Unit Hacks . | . . . Scanalyzer . | . . . Garrison Access Hacks . | . . . Unauthorized Hacks . | . . . Terminals . | . . . Fabricators . | . . . Repair Stations . | . . . Recycling Units . | . . . Scanalyzers . | . . . Garrison Access . | . . . Data Cores Recovered . | . . . Used . | . . . Hacking Detections 1 | . 1 . Full Trace Events . | . . . Feedback Events . | . . . Feedback Blocked . | . . . Robot Schematics Acquired . | . . . Robots Built . | . . . Authchips . | . . . Time . | . . . Total Robot Build Rating . | . . . Part Schematics Acquired . | . . . Parts Built . | . . . Authchips . | . . . Time . | . . . Total Part Build Rating . | . . . Parts Repaired . | . . . Time . | . . . Parts Recycled . | . . . Recycled Matter . | . . . Retrieved Matter . | . . . Retrieved Components . | . . . Parts Scanalyzed . | . . . Part Schematics Acquired . | . . . Parts Damaged . | . . . Bothacking | -11 -10 -10 ------------ Run | Yrd Mat Sub Used RIF Installer . | . . . Robots Hacked . | . . . Non-combat . | . . . Combat . | . . . Robot Hacks Applied . | . . . Relay Couplers Released . | . . . Fabnet Peak Effective % . | . . . Robots Rewired . | . . . Allies Hacked . | . . . Hacks Repelled . | . . . Allies | -11 -10 -10 -------- Run | Yrd Mat Sub Total Allies . | . . . Largest Group . | . . . Highest-Rated Group . | . . . Highest-Rated Ally . | . . . Total Orders . | . . . Ally Attacks . | . . . Total Damage . | . . . Kills . | . . . Allies Corrupted . | . . . Allies Melted . | . . . Intel | -11 -10 -10 ------- Run | Yrd Mat Sub Robot Analysis Total . | . . . Derelict Logs Recovered . | . . . Drone Launches . | . . . Drone Recoveries . | . . . Exploration | -11 -10 -10 ------------- Run | Yrd Mat Sub Turns Passed 1481 | 67 516 898 Spaces Moved 913 | 35 136 742 Core 9 | 9 . . Treads . | . . . Legs 581 | 26 136 419 Wheels 323 | . . 323 Hover . | . . . Flight . | . . . Fastest Speed 50 | 50 120 90 Average Speed 109 | 120 120 106 Slowest Speed 190 | 190 120 120 Overloaded Moves . | . . . Propulsion Burnouts . | . . . Robots Hopped . | . . . Cave-ins Triggered . | . . . Exploration Rate (%) 33 | 4 38 58 Regions Visited 2 Branch Regions 1 Pre-discovered Areas 1 | . . 1 Known Exits Taken . | . . . Unknown Exits Taken 2 | 1 1 . Scrap Searched 1 | . . 1 Spaces Dug 4 | . . 4 Terrain Destroyed 27 | . . 27 Melee 4 | . . 4 Projectile . | . . . AOE 23 | . . 23 Terrain Rammed . | . . . Walls Destroyed . | . . . Machines Disabled . | . . . Actions | -11 -10 -10 --------- Run | Yrd Mat Sub Total 1313 | 51 465 797 Wait 314 | . 312 2 Move 911 | 34 135 742 Hop . | . . . Pick Up 12 | 6 3 3 Fast Attach 7 | 7 . . Attach 4 | . . 4 Detach 1 | . . 1 Swap 3 | . . 3 Drop 2 | . 1 1 Fire 34 | 3 13 18 Melee 23 | . . 23 Ram . | . . . Kick 2 | 1 1 . Crush . | . . . Escape Stasis . | . . . Rewire . | . . . Trap . | . . . Miscellaneous . | . . . Route ------- -11/Scrapyard -10/Materials (discovered 2 exits: [*Min] / [*Sub]) -10/Subcaves History --------- Turn | Location | Event 11 | -11/Scrapyard | Discovered new exit (range 16) 68 | -11/Scrapyard | Entered Materials 194 | -10/Materials | Discovered new exit (range 7) 315 | -10/Materials | Build established: Mutant 568 | -10/Materials | Discovered new exit (range 3) 584 | -10/Materials | Entered Subcaves 719 | -10/Subcaves | Learned location of Zion (-6) 719 | -10/Subcaves | Met a Zionite searching for "candidates" 750 | -10/Subcaves | Core integrity fell below 50% 764 | -10/Subcaves | Lost 3 parts (1p2w) 805 | -10/Subcaves | Shifting Twisted Machinery released Mak. System Restoration Module 820 | -10/Subcaves | Core integrity fell below 20% 858 | -10/Subcaves | Shifting Twisted Machinery released Sub. Beam Cannon 902 | -10/Subcaves | A swath of the cavern ceiling suddenly collapsed 1022 | -10/Subcaves | Shifting Twisted Machinery released Mak. Light Armor Plating 1024 | -10/Subcaves | Shifting Twisted Machinery released Sub. Beam Cannon 1308 | -10/Subcaves | Shifting Twisted Machinery released Shrapnel Trap 1482 | -10/Subcaves | Destroyed by Autobeam Turret with Autobeam Last Messages --------------- collapses. 00924_ S-10 Pest destroyed. 00927_ Destroyed Flight Unit. 00927_ S-10 Pest destroyed. 00929_ Acquired 17 matter. 00958_ Acquired 14 matter. Mak. Light Armor Plating falls loose from the Twisted Machinery. Sub. Beam Cannon falls loose from the Twisted Machinery. 01172_ Searching scrap... 01172_ Found Scrap Shield. 01172_ Found 18 Matter. 01173_ Acquired 18 matter. 01186_ Dropped Lgt. Treads. 01189_ Acquired Scrap Shield. Shrapnel Trap falls loose from the Twisted Machinery. 01404_ Acquired 9 matter. 01482_ Acquired 48 matter. Map ----- +----------------------------------------------------+ | ##??????????????# ## ##??????????????? | | ##???????????????## # # #??????????????? | | ##?????????????????# #??????????????? | | #??????????????????#### # ##??????????????? | | #?????????????????##??## ##?????????????? | | #????????????????## ### #?????????????? | | #????????????????# ## ##?????????????? | | #?????????????????# ##?????????????? | | ##????????????????## #?????????????? | | #?????????????????# #?????????????? | | ??????????????????#### #?????????????? | | ?????????????????????# ##?????????????? | | ?????????????????????# #??????????????? | | ?????????????????????# #??????????????? | | ?????????????????????# ##??????????????? | | ?????????????????????## ##??????????????? | | ???????????????????#### #??????????????? | | ???????????????????# #??????????????? | | ???????????????????# # #??????????????? | | ???????????????????# ## #??????????????? | | ???????????????????## # #??????????????? | | ????????????????????## # ##?????????????? | | ?????????????????????## #?????????????? | | ?????????????######???### #?????????????? | | ?????????? % &#&# #?????????????? | | ?????????? % &%&@ ##?????????????? | | ?????????? &&% #?????????????? | | ###??????????########% #####?????????????? | | ##????????????????## #?????????????????? | | #?????????????????## #?????????????????? | | #??????????????????# #?????????????????? | | ##??????????????????# ?????????????????? | | #???????????????????# ?????????????????? | | ##???????????????????# ?????????????????? | | ##????????????????????# ?????????????????? | | ##????????????????????# ?????????????????? | | #???????????????????? ?????????????????? | | ##???????????????????? ?????????????????? | | ##???????????????????? ?????????????????? | | #???????????????????? ?????????????????? | | #????????????????????? ?????????????????? | | ##??????????????????????????????????????????? | | #???????????????????????????????????????????? | | ????????????????????????????????????????????? | | ####????????????????????????????????????????? | | """#????????????????????????????????????????? | | """#????????????????????????????????????????? | | """#????????????????????????????????????????? | | #????????????????????????????????????????? | | #????????????????????????????????????????? | +----------------------------------------------------+ Best States ------------- Heat Dissipation 25 Energy Generation 10 Energy Capacity 250 Matter Stores 132 Matter Capacity 300 Sight Range 16 Terrain Scan Density 10 Evasion (%) 55 Targeting Accuracy 5 Item Schematics ----------------- None Robot Schematics ------------------ None Fabricated ------------ Nothing Alien Tech Used ----------------- None Achievements -------------- None Challenges ------------ None Game ------ Seed ImprovedAntigravRipper Manual? 0 Play Time 00:08:02 Cumulative 51.7 hours Start 2024.07.22 @ 19:49:12 End 2024.07.22 @ 19:55:58 Sessions 1 Manual Loads 0 Difficulty Rogue Special Mode None Game No. 148 Rogue 146 Adventurer 2 Explorer 0 Win Type - Total 0 Types 0/0/0/0/0/0/0/0/0 Lore% 37 Gallery% 50 Achievement% 37 Wizard Run 0 Options --------- Layout 2 ASCII 0 Keyboard 0 Movement Arrows Keybinds 0 Fullscreen 2 Font 24/Smallcaps Map View 50x44 Zoom Use 0% Tactical HUD 1 Map Filters NONE Filters NONE Steam 1 RUN: 000273ab-b114-47fb-851c-8da4d8be7c03